fUST/lending_fUST_20260617
["ID","MTS","AMOUNT","RATE_DAILY","PERIOD"]
[425339345,1781700651000,-1029.49,0.00016986,2]
[425339348,1781700651000,-779.92,0.00016986,2]
[425339351,1781700651000,-500.0,0.00016986,2]
[425340784,1781700778000,152.0,0.00010029,30]
[425340792,1781701058000,31317.64740207,7.6e-05,2]
[425340802,1781701141000,166.66666678,0.0001,30]
[425340810,1781701235000,-491.75244286,0.0001,2]
[425340819,1781701251000,-503.36226178,0.00011864,2]
[425340821,1781701268000,-156.0,0.00012105,2]
[425340823,1781701285000,-839.11470464,0.00011628,2]
[425340824,1781701302000,-156.0,0.00011628,2]
[425340826,1781701318000,-839.11470464,0.00011628,2]
[425340827,1781701336000,-156.0,0.00011628,2]
[425340829,1781701352000,-839.11470464,0.00011628,2]
[425340927,1781701841000,-1221.60926296,9.968e-05,2]
[425340932,1781701841000,-3778.39073704,9.968e-05,2]
[425340934,1781701841000,-2565.63678502,0.00010069,2]
[425340952,1781701841000,-931.43834698,0.00010069,2]
[425340953,1781701841000,-1502.924868,0.00010069,2]
[425340954,1781701841000,-5000.0,0.00010171,2]
[425340955,1781701841000,-208.18041266,0.00010483,2]
[425340963,1781701841000,-804.6,0.00012329,2]
[425340966,1781701841000,-567.90634422,0.00013,2]
[425340965,1781701841000,-208.92101333,0.00012939,2]
[425340964,1781701841000,-732.8745443,0.00012459,2]
[425340957,1781701841000,-278.06,0.00012329,2]
[425340971,1781701841000,-82391.3025084,0.00013859,2]
[425340972,1781701841000,-411.10300001,0.00013859,2]
[425340970,1781701841000,-937.8770657,0.00013699,2]
[425340969,1781701841000,-240.494186,0.00013699,2]
[425340967,1781701841000,-373.67471656,0.00013159,2]
[425340961,1781701841000,-160.92,0.00012329,2]
[425340959,1781701841000,-193.1,0.00012329,2]
[425340956,1781701841000,-1705.3069358,0.00012317,2]
[425340958,1781701841000,-231.72,0.00012329,2]
[425340968,1781701841000,-175.26624371,0.00013259,2]
[425341113,1781701843000,-572.22010432,0.00013859,2]
[425341122,1781701843000,-18522.118,0.00013859,2]
[425341112,1781701843000,-819.30227355,0.00013859,2]
[425341119,1781701843000,-396.54944253,0.00013859,2]
[425341126,1781701843000,-1902.04860122,0.00013859,2]
[425341124,1781701843000,-6737.03391632,0.00013859,2]
[425341492,1781701846000,-3846.10383663,0.00013859,2]
[425341521,1781701847000,-123787.35707039,0.00013859,2]
[425341892,1781702231000,-715.96942487,9.606e-05,2]
[425341893,1781702240000,-230.50848433,9.51e-05,2]
[425341894,1781702242000,-726.15379889,9.51e-05,2]
[425341895,1781702243000,-199.53298916,9.51e-05,2]
[425341896,1781702244000,-235.469673,9.51e-05,2]
[425341897,1781702245000,-325.37338204,9.51e-05,2]
[425341898,1781702246000,-272.54731374,9.51e-05,2]
[425341899,1781702247000,-152.0,9.51e-05,2]
[425341901,1781702249000,-772.16357969,9.415e-05,2]
[425341900,1781702249000,-377.94451951,9.415e-05,2]
[425341902,1781702250000,-239.64878799,9.415e-05,2]
[425341903,1781702251000,-428.33487404,9.415e-05,2]
[425341905,1781702345000,-1200.0,9.415e-05,2]
[425341907,1781702393000,-500.0,9.415e-05,2]
[425341908,1781702411000,-585.274,9.415e-05,2]
[425341911,1781702438000,-500.0,9.136e-05,2]
[425341921,1781702482000,-3584.89625274,9.321e-05,2]
[425341920,1781702482000,-2000.25848792,9.228e-05,2]
[425341918,1781702482000,-353.220955,9.136e-05,2]
[425341919,1781702482000,-515.82430434,9.136e-05,2]
[425341917,1781702482000,-4500.0,9.136e-05,2]
[425341966,1781702631000,-1895.0387,9.136e-05,2]
[425341982,1781702714000,-225.1842,9.034e-05,2]
[425341990,1781702811000,-535.8914,8.944e-05,2]
[425342008,1781702853000,-1904.31045957,9.034e-05,2]
[425342007,1781702853000,-195.68954043,8.944e-05,2]
[425342015,1781702881000,-1280.21,9.034e-05,2]
[425342023,1781702923000,-219.794,9e-05,2]
[425342031,1781702960000,-213.66411007,9e-05,2]
[425342032,1781702960000,-51.46188993,9.034e-05,2]
[425342033,1781702982000,-288.183,9.034e-05,2]
[425342035,1781703010000,-1934.77,9.034e-05,2]
[425342081,1781703031000,-1997.63169329,9.034e-05,2]
[425342068,1781703031000,-433.45811007,9.034e-05,2]
[425342609,1781703040000,-294.49530671,9.034e-05,2]
[425342643,1781703040000,-266.10867573,0.00010374,7]
[425342633,1781703040000,-514.7886852,0.0001,2]
[425342635,1781703040000,-217.05472339,0.00010168,7]
[425342645,1781703040000,-778.4415515,0.0001046,2]
[425342616,1781703040000,-327.06071811,9.415e-05,7]
[425342631,1781703040000,-5194.6385994,0.0001,2]
[425342637,1781703040000,-290.95154206,0.00010168,7]
[425342619,1781703040000,-217.05472339,9.603e-05,7]
[425342613,1781703040000,-166.277812,9.321e-05,2]
[425342622,1781703040000,-327.06071811,9.603e-05,7]
[425342628,1781703040000,-327.06071811,9.886e-05,7]
[425342624,1781703040000,-217.05472339,9.886e-05,7]
[425342621,1781703040000,-193.96769468,9.603e-05,7]
[425342611,1781703040000,-337.8745744,9.125e-05,2]
[425342615,1781703040000,-217.05472339,9.415e-05,7]
[425342639,1781703040000,-327.06071811,0.00010168,7]
[425342675,1781703040000,-3074.28908542,0.00013658,2]
[425342649,1781703040000,-327.06071815,0.00010545,7]
[425342702,1781703040000,-591.74439009,0.00013658,2]
[425342665,1781703040000,-165.333351,0.00011657,2]
[425342663,1781703040000,-266.10867576,0.00011392,7]
[425342669,1781703040000,-500.0,0.00012911,2]
[425342667,1781703040000,-165.333351,0.00012475,2]
[425342651,1781703040000,-500.0,0.00010629,2]
[425342677,1781703040000,-22831.43386196,0.00013658,2]
[425342661,1781703040000,-266.10867573,0.00010985,7]
[425342659,1781703040000,-2965.26165494,0.00010959,2]
[425342671,1781703040000,-165.333351,0.00013292,2]
[425342657,1781703040000,-1954.04491996,0.00010959,2]
[425342655,1781703040000,-266.10867573,0.0001068,7]
[425342653,1781703040000,-25543.0464873,0.0001063,2]
[425342647,1781703040000,-217.0547234,0.00010545,7]
[425342641,1781703040000,-266.10867573,0.00010171,7]
[425342673,1781703040000,-186.255,0.00013656,2]
[425343343,1781703046000,-780.09051058,0.00013658,2]
[425343328,1781703046000,-165.333351,0.00010152,2]
[425343330,1781703046000,-3680.77692237,0.00013658,2]
[425344424,1781703910000,-471.67510429,9.034e-05,7]
[425344427,1781703910000,-471.67510429,9.757e-05,7]
[425344426,1781703910000,-471.67510429,9.486e-05,7]
[425344425,1781703910000,-471.67510429,9.215e-05,7]
[425344428,1781703910000,-1272.18958284,9.801e-05,2]
[425344630,1781704238000,-1942.39406701,9.703e-05,2]
[425344636,1781704238000,-3429.97719638,0.00010572,2]
[425344632,1781704238000,-1745.06840118,9.801e-05,2]
[425344634,1781704238000,-471.67510432,0.00010118,7]
[425344631,1781704238000,-3057.60593299,9.703e-05,2]
[425344637,1781704238000,-300.0,0.000106,2]
[425344638,1781704238000,-165.333352,0.00011342,2]
[425344639,1781704238000,-1000.0,0.00012,2]
[425344640,1781704238000,-4355.92879358,0.00013356,2]
[425344635,1781704238000,-3826.10452252,0.00010572,2]
[425344633,1781704238000,-321.28555871,0.0001,2]
[425344932,1781704243000,-256.2,0.00013356,2]
[425344931,1781704243000,-0.00426269,0.00013356,2]
[425344981,1781704246000,-17057.0427569,0.00013356,2]
[425344972,1781704246000,-372.9242503,0.00013356,2]
[425345022,1781704660000,203847.18202023,7.6e-05,2]
[425345021,1781704660000,1000.0,7.6e-05,2]
[425345029,1781704679000,302.0,0.00023332,30]
[425345043,1781704834000,5000.0,0.00010111,13]
[425345042,1781704834000,-1082.39549583,0.0001,2]
[425345334,1781705438000,-221.85304998,0.00011494,2]
[425345294,1781705438000,-1459.54900953,9.606e-05,2]
[425345319,1781705438000,-552.54701258,0.0001,2]
[425345316,1781705438000,-3540.45099047,9.606e-05,2]
[425345318,1781705438000,-166.277812,9.9e-05,2]
[425345321,1781705438000,-7918.96292666,0.0001,2]
[425345327,1781705438000,-500.0,0.00011494,2]
[425345329,1781705438000,-157.75159254,0.00011494,2]
[425345331,1781705438000,-500.0,0.00011494,2]
[425345325,1781705438000,-186.255,0.00011393,2]
[425345332,1781705438000,-500.0,0.00011494,2]
[425345323,1781705438000,-152.0,0.00010858,7]
[425345483,1781705441000,-500.0,0.00011494,2]
[425345489,1781705441000,-500.0,0.00011494,2]
[425345487,1781705441000,-500.0,0.00011494,2]
[425345484,1781705441000,-500.0,0.00011494,2]
[425345481,1781705441000,-278.14695002,0.00011494,2]
[425345490,1781705441000,-385.52730368,0.00011494,2]
[425345486,1781705441000,-500.0,0.00011494,2]
[425345501,1781705441000,-485.9257463,0.00011494,2]
[425345493,1781705441000,-500.0,0.00011494,2]
[425345495,1781705441000,-500.0,0.00011494,2]
[425345498,1781705441000,-500.0,0.00011494,2]
[425345500,1781705441000,-500.0,0.00011494,2]
[425345497,1781705441000,-500.0,0.00011494,2]
[425345492,1781705441000,-500.0,0.00011494,2]
[425346074,1781705446000,-500.0,0.00011494,2]
[425346080,1781705446000,-500.0,0.00011494,2]
[425346078,1781705446000,-500.0,0.00011494,2]
[425346072,1781705446000,-500.0,0.00011494,2]
[425346082,1781705446000,-0.2236952,0.00011494,2]
[425346097,1781705446000,-499.7763048,0.00011494,2]
[425346099,1781705446000,-500.0,0.00011494,2]
[425346100,1781705446000,-336.32053556,0.00011494,2]
[425346076,1781705446000,-500.0,0.00011494,2]
[425346760,1781706635000,-1225.33688821,9.509e-05,2]
[425346816,1781706635000,-650.39546265,9.509e-05,2]
[425346856,1781706641000,-1940.19297295,9.509e-05,2]
[425346881,1781706643000,-479.81865468,9.605e-05,2]
[425346877,1781706643000,-78.63308482,9.605e-05,2]
[425346876,1781706643000,-1184.07467619,9.509e-05,2]
[425346903,1781706646000,-500.0,0.00011499,2]
[425346901,1781706646000,-500.0,0.00011499,2]
[425346897,1781706646000,-423.16322737,0.00011499,2]
[425346908,1781706646000,-350.56725242,0.0001183,2]
[425346907,1781706646000,-188.46763674,0.0001171,2]
[425346905,1781706646000,-500.0,0.00011499,2]
[425346906,1781706646000,-28989.10640336,0.000115,2]
[425346904,1781706646000,-500.0,0.00011499,2]
[425346902,1781706646000,-451.21955869,0.00011499,2]
[425346900,1781706646000,-500.0,0.00011499,2]
[425346889,1781706646000,-502.00103627,9.509e-05,2]
[425346898,1781706646000,-500.0,0.00011499,2]
[425346896,1781706646000,-76.83677263,0.00011499,2]
[425346891,1781706646000,-171.803284,0.00010836,2]
[425346892,1781706646000,-152.0,0.00010859,7]
[425346894,1781706646000,-339.24174614,0.00011387,2]
[425346895,1781706646000,-603.09643758,0.00011387,2]
[425346893,1781706646000,-306.74634587,0.00011383,2]
[425346890,1781706646000,-1117.20618728,9.605e-05,2]
[425346899,1781706646000,-500.0,0.00011499,2]
[425346909,1781706646000,-286.53133078,0.00011987,2]
[425346930,1781706646000,-163.81573735,0.000132,2]
[425346921,1781706646000,-363.59161138,0.00012912,2]
[425346932,1781706646000,-163.90694327,0.000132,2]
[425346931,1781706646000,-163.90694327,0.000132,2]
[425346929,1781706646000,-160.74071404,0.000132,2]
[425346934,1781706646000,-164.31028836,0.000132,2]
[425346928,1781706646000,-160.74071404,0.000132,2]
[425346926,1781706646000,-374.01502981,0.00013179,2]
[425346933,1781706646000,-164.31028836,0.000132,2]
[425346922,1781706646000,-326.7384618,0.00012932,2]
[425346923,1781706646000,-1693.9751417,0.00012951,2]
[425346924,1781706646000,-422.67131859,0.00013076,2]
[425346913,1781706646000,-547.76133191,0.00012278,2]
[425346914,1781706646000,-1176.37162618,0.00012649,2]
[425346912,1781706646000,-311.99118269,0.00012132,2]
[425346916,1781706646000,-164.53671617,0.00012649,2]
[425346917,1781706646000,-188.04196133,0.00012649,2]
[425346919,1781706646000,-259.99265224,0.00012656,2]
[425346911,1781706646000,-10954.19314635,0.00012,2]
[425346915,1781706646000,-318.46112108,0.00012649,2]
[425346918,1781706646000,-293.81556458,0.00012649,2]
[425346920,1781706646000,-787.98754163,0.00012726,2]
[425346910,1781706646000,-327.13691366,0.00011987,2]
[425346937,1781706647000,-752.87784076,0.00013254,2]
[425346936,1781706647000,-423.49378543,0.00013254,2]
[425346935,1781706647000,-235.27432524,0.00013254,2]
[425346938,1781706647000,-151.0,0.00013347,2]
[425346941,1781706647000,-73459.42128414,0.00013378,2]
[425346940,1781706647000,-426.8574399,0.00013377,2]
[425346942,1781706647000,-378.68388632,0.00013378,2]
[425346939,1781706647000,-275.13157682,0.00013347,2]
[425346946,1781706918000,-151.0,9.999e-05,7]
[425346945,1781706918000,-151.0,9.999e-05,7]
[425346947,1781706919000,-97.1630136,9.999e-05,7]
[425346948,1781706926000,53.8369864,9.892e-05,7]
[425346949,1781706940000,-98.1630136,9.892e-05,7]
[425347052,1781707832000,-399.1630136,0.00010199,7]
[425347053,1781707832000,-2912.57960729,0.00010291,2]
[425347061,1781707832000,-1999.32314318,0.00010713,2]
[425347056,1781707832000,-1251.92339728,0.00010291,2]
[425347070,1781707832000,-1351.16135908,0.00010713,2]
[425347063,1781707832000,-1229.51978514,0.00010713,2]
[425347071,1781707832000,-399.1630136,0.00010799,7]
[425347081,1781707832000,-565.9330753,0.00011797,2]
[425347059,1781707832000,-399.1630136,0.00010499,7]
[425347073,1781707832000,-399.16301363,0.00011199,7]
[425347075,1781707832000,-224.1633437,0.000112,2]
[425347077,1781707832000,-151.7786022,0.0001126,2]
[425347083,1781707832000,-229.15,0.00012948,2]
[425347079,1781707832000,-220.444468,0.00011334,2]
[425347085,1781707832000,-1555.02078702,0.00013075,2]
[425347057,1781707832000,-1225.33688821,0.00010395,2]
[425347050,1781707832000,-152.0,0.00010195,7]
[425347345,1781707838000,-2772.58118109,0.00013075,2]
[425347346,1781707839000,-5919.65357335,0.00013075,2]
[425347347,1781707839000,-685.59655321,0.00013075,2]
[425347827,1781707844000,-1823.98560654,0.00013075,2]
[425347924,1781707847000,-13438.7565838,0.00013075,2]
[425347896,1781707847000,-1309.32962996,0.00013075,2]
[425347962,1781707879000,199.72383665,0.0002331,120]
[425347964,1781707945000,220.90938433,0.0002331,120]
[425348011,1781708257000,2509.23271325,7.6e-05,2]
[425348012,1781708269000,186.92,0.00023315,120]
[425348013,1781708275000,151.0,0.0002331,30]
[425348019,1781708458000,-152.0,0.00010237,7]
[425348023,1781708474000,-930.39549583,0.00011385,13]
[425348025,1781708491000,-507.18165043,0.000115,2]
[425348028,1781708508000,-930.39549583,0.000115,2]
[425348032,1781708525000,-507.18165043,0.000115,2]
[425348035,1781708542000,-930.39549583,0.000115,2]
[425348036,1781708558000,-507.18165043,0.000115,2]
[425348124,1781709031000,-156.56328037,0.00010786,2]
[425348125,1781709031000,-5017.91338847,0.000115,2]
[425348596,1781709040000,-500.0,0.00012493,2]
[425348594,1781709040000,-500.0,0.00012493,2]
[425348593,1781709040000,-500.0,0.00012493,2]
[425348591,1781709040000,-500.0,0.00012493,2]
[425348584,1781709040000,-500.0,0.00012493,2]
[425348587,1781709040000,-500.0,0.00012493,2]
[425348585,1781709040000,-500.0,0.00012493,2]
[425348583,1781709040000,-500.0,0.00012493,2]
[425348586,1781709040000,-500.0,0.00012493,2]
[425348589,1781709040000,-500.0,0.00012493,2]
[425348588,1781709040000,-500.0,0.00012493,2]
[425348580,1781709040000,-500.0,0.00012493,2]
[425348582,1781709040000,-500.0,0.00012493,2]
[425348590,1781709040000,-500.0,0.00012493,2]
[425348595,1781709040000,-500.0,0.00012493,2]
[425348568,1781709040000,-500.0,0.00012223,2]
[425348575,1781709040000,-2303.38269893,0.00012422,2]
[425348573,1781709040000,-178.624404,0.00012223,2]
[425348567,1781709040000,-500.0,0.00012223,2]
[425348566,1781709040000,-1176.37162618,0.00011801,2]
[425348574,1781709040000,-4991.83687895,0.00012394,2]
[425348599,1781709040000,-500.0,0.00012493,2]
[425348577,1781709040000,-500.0,0.00012493,2]
[425348570,1781709040000,-500.0,0.00012223,2]
[425348576,1781709040000,-500.0,0.00012493,2]
[425348571,1781709040000,-500.0,0.00012223,2]
[425348569,1781709040000,-500.0,0.00012223,2]
[425348572,1781709040000,-500.0,0.00012223,2]
[425348565,1781709040000,-4837.06725997,0.000115,2]
[425348564,1781709040000,-1976.8246252,0.000115,2]
[425348579,1781709040000,-500.0,0.00012493,2]
[425348601,1781709040000,-500.0,0.00012493,2]
[425348581,1781709040000,-500.0,0.00012493,2]
[425348598,1781709040000,-500.0,0.00012493,2]
[425348618,1781709040000,-500.0,0.00012493,2]
[425348626,1781709040000,-500.0,0.00012493,2]
[425348628,1781709040000,-151.0,0.00012495,2]
[425348629,1781709040000,-151.0,0.00012495,2]
[425348627,1781709040000,-500.0,0.00012493,2]
[425348621,1781709040000,-500.0,0.00012493,2]
[425348617,1781709040000,-500.0,0.00012493,2]
[425348619,1781709040000,-500.0,0.00012493,2]
[425348620,1781709040000,-500.0,0.00012493,2]
[425348622,1781709040000,-500.0,0.00012493,2]
[425348625,1781709040000,-500.0,0.00012493,2]
[425348623,1781709040000,-500.0,0.00012493,2]
[425348630,1781709040000,-151.0,0.00012495,2]
[425348603,1781709040000,-395.85875851,0.00012493,2]
[425348624,1781709040000,-500.0,0.00012493,2]
[425348611,1781709040000,-500.0,0.00012493,2]
[425348578,1781709040000,-500.0,0.00012493,2]
[425348610,1781709040000,-500.0,0.00012493,2]
[425348600,1781709040000,-500.0,0.00012493,2]
[425348602,1781709040000,-500.0,0.00012493,2]
[425348597,1781709040000,-500.0,0.00012493,2]
[425348605,1781709040000,-500.0,0.00012493,2]
[425348592,1781709040000,-500.0,0.00012493,2]
[425348616,1781709040000,-500.0,0.00012493,2]
[425348612,1781709040000,-500.0,0.00012493,2]
[425348615,1781709040000,-500.0,0.00012493,2]
[425348609,1781709040000,-500.0,0.00012493,2]
[425348607,1781709040000,-500.0,0.00012493,2]
[425348604,1781709040000,-500.0,0.00012493,2]
[425348606,1781709040000,-500.0,0.00012493,2]
[425348614,1781709040000,-621.68169115,0.00012493,2]
[425348613,1781709040000,-500.0,0.00012493,2]
[425348608,1781709040000,-500.0,0.00012493,2]
[425348645,1781709041000,-1569.65413754,0.00012799,2]
[425348643,1781709041000,-1569.65413754,0.00012799,2]
[425348638,1781709041000,-1569.65413754,0.00012799,2]
[425348636,1781709041000,-1569.65413754,0.00012799,2]
[425348637,1781709041000,-350.44424241,0.00012799,2]
[425348635,1781709041000,-178.92946328,0.00012783,2]
[425348649,1781709041000,-1569.65413754,0.00012799,2]
[425348633,1781709041000,-18141.94478871,0.000125,2]
[425348639,1781709041000,-1569.65413754,0.00012799,2]
[425348632,1781709041000,-9881.43359109,0.000125,2]
[425348640,1781709041000,-1569.65413754,0.00012799,2]
[425348641,1781709041000,-1569.65413754,0.00012799,2]
[425348642,1781709041000,-1569.65413754,0.00012799,2]
[425348644,1781709041000,-1569.65413754,0.00012799,2]
[425348634,1781709041000,-182.713,0.00012715,2]
[425348631,1781709041000,-500.0,0.00012497,2]
[425348646,1781709041000,-1569.65413754,0.00012799,2]
[425348647,1781709041000,-1569.65413754,0.00012799,2]
[425348664,1781709041000,-197640.49943483,0.00012975,2]
[425348661,1781709041000,-177.56052225,0.00012875,2]
[425348663,1781709041000,-326.8999503,0.00012932,2]
[425348662,1781709041000,-500.0,0.00012911,2]
[425348660,1781709041000,-211.18228017,0.000128,2]
[425348658,1781709041000,-205.70462521,0.000128,2]
[425348659,1781709041000,-206.94801257,0.000128,2]
[425348656,1781709041000,-1569.65413754,0.00012799,2]
[425348657,1781709041000,-198.21977145,0.000128,2]
[425348652,1781709041000,-1569.65413754,0.00012799,2]
[425348648,1781709041000,-1569.65413754,0.00012799,2]
[425348651,1781709041000,-1569.65413754,0.00012799,2]
[425348653,1781709041000,-1569.65413754,0.00012799,2]
[425348655,1781709041000,-1569.65413754,0.00012799,2]
[425348654,1781709041000,-1569.65413754,0.00012799,2]
[425348650,1781709041000,-1569.65413754,0.00012799,2]
[425348710,1781709043000,-1273.98063804,0.00012975,2]
[425348711,1781709043000,-802.29921743,0.00012975,2]
[425348709,1781709043000,-1693.9751417,0.00011801,2]
[425348721,1781709046000,-4142.14617314,0.00012975,2]
[425348722,1781709046000,-1576.20022737,0.00012975,2]
[425348720,1781709046000,-12498.93072132,0.00012975,2]
[425348719,1781709046000,-1711.16078663,0.00012975,2]
[425348745,1781710012000,-715.97383072,9.27e-05,2]
[425348746,1781710013000,-235.469673,9.27e-05,2]
[425348747,1781710014000,-325.37338204,9.27e-05,2]
[425348748,1781710015000,-199.53298916,9.27e-05,2]
[425348749,1781710016000,-272.54731374,9.27e-05,2]
[425348750,1781710017000,-726.15379889,9.27e-05,2]
[425348753,1781710018000,-152.0,9.27e-05,2]
[425348751,1781710018000,-230.50848433,9.27e-05,2]
[425348754,1781710019000,-428.33487404,9.27e-05,2]
[425348755,1781710021000,-772.16357969,9.177e-05,2]
[425348756,1781710022000,-377.94451951,9.177e-05,2]
[425348757,1781710027000,-239.64878799,9.177e-05,2]
[425348758,1781710028000,-500.0,9.085e-05,2]
[425348770,1781710219000,-1228.77913138,8.815e-05,2]
[425348771,1781710224000,-266.58174353,8.815e-05,2]
[425348855,1781710232000,-433.45811007,8.904e-05,2]
[425348848,1781710232000,-1553.4866752,8.904e-05,2]
[425348847,1781710232000,-146.22476625,8.815e-05,2]
[425349331,1781710239000,-218.07390326,8.994e-05,2]
[425349330,1781710239000,-2491.26775241,8.904e-05,2]
[425349339,1781710240000,-603.07062832,8.994e-05,2]
[425349406,1781710243000,-180.056,0.00012519,2]
[425349417,1781710243000,-500.0,0.00012673,2]
[425349413,1781710243000,-500.0,0.00012673,2]
[425349412,1781710243000,-500.0,0.00012673,2]
[425349408,1781710243000,-4367.85726909,0.00012574,2]
[425349404,1781710243000,-619.06992138,0.00012465,2]
[425349402,1781710243000,-400.69361538,0.00012173,2]
[425349389,1781710243000,-1042.95590704,0.00011084,2]
[425349400,1781710243000,-348.22683078,0.00011978,2]
[425349394,1781710243000,-259.99265224,0.0001121,2]
[425349387,1781710243000,-157.46751716,9.815e-05,2]
[425349423,1781710243000,-500.0,0.00012673,2]
[425349392,1781710243000,-311.99118269,0.0001121,2]
[425349383,1781710243000,-4178.85546842,8.994e-05,2]
[425349385,1781710243000,-151.0,9.363e-05,2]
[425349396,1781710243000,-193.45935043,0.00011492,2]
[425349419,1781710243000,-526.53038331,0.00012673,2]
[425349398,1781710243000,-222.6075641,0.00011589,2]
[425349415,1781710243000,-500.0,0.00012673,2]
[425349410,1781710243000,-500.0,0.00012673,2]
[425349449,1781710243000,-1255.72331004,0.00012674,2]
[425349447,1781710243000,-1255.72331004,0.00012674,2]
[425349444,1781710243000,-1255.72331004,0.00012674,2]
[425349442,1781710243000,-1255.72331004,0.00012674,2]
[425349436,1781710243000,-245.31096968,0.00012674,2]
[425349438,1781710243000,-1255.72331004,0.00012674,2]
[425349451,1781710243000,-1250.59356315,0.00012674,2]
[425349445,1781710243000,-1255.72331004,0.00012674,2]
[425349434,1781710243000,-1255.72331004,0.00012674,2]
[425349433,1781710243000,-500.0,0.00012673,2]
[425349431,1781710243000,-500.0,0.00012673,2]
[425349427,1781710243000,-500.0,0.00012673,2]
[425349429,1781710243000,-500.0,0.00012673,2]
[425349425,1781710243000,-500.0,0.00012673,2]
[425349421,1781710243000,-457.96463235,0.00012673,2]
[425349440,1781710243000,-1255.72331004,0.00012674,2]
[425349728,1781710246000,-1255.72331004,0.00012674,2]
[425349718,1781710246000,-5.12974689,0.00012674,2]
[425349720,1781710246000,-1255.72331004,0.00012674,2]
[425349726,1781710246000,-1255.72331004,0.00012674,2]
[425349723,1781710246000,-1255.72331004,0.00012674,2]
[425349725,1781710246000,-1255.72331004,0.00012674,2]
[425349722,1781710246000,-1255.72331004,0.00012674,2]
[425349721,1781710246000,-1255.72331004,0.00012674,2]
[425349730,1781710246000,-1339.43819736,0.00012674,2]
[425349727,1781710246000,-1255.72331004,0.00012674,2]
[425349724,1781710246000,-1255.72331004,0.00012674,2]
[425349729,1781710246000,-1255.72331004,0.00012674,2]
[425349731,1781710246000,-1339.43819736,0.00012674,2]
[425349732,1781710246000,-1339.43819736,0.00012674,2]
[425349733,1781710246000,-1339.43819736,0.00012674,2]
[425349734,1781710246000,-1339.43819736,0.00012674,2]
[425349735,1781710246000,-1272.68076264,0.00012674,2]
[425349719,1781710246000,-1255.72331004,0.00012674,2]
[425349903,1781711432000,-159.46145193,0.000125,2]
[425349899,1781711432000,-158.6676651,0.000125,2]
[425349909,1781711432000,-1180.42523068,0.00012574,2]
[425349901,1781711432000,-158.84898739,0.000125,2]
[425349898,1781711432000,-157.56799783,0.000125,2]
[425349894,1781711432000,-179.35500449,0.000123,2]
[425349907,1781711432000,-275.13157682,0.00012567,2]
[425349888,1781711432000,-768.98025012,0.00010922,2]
[425349892,1781711432000,-333.8166072,0.0001211,2]
[425349896,1781711432000,-159.5178535,0.0001237,2]
[425349890,1781711432000,-5000.0,0.00011032,2]
[425349911,1781711432000,-1180.42523068,0.00012574,2]
[425349931,1781711432000,-402.1887011,0.00012799,2]
[425349919,1781711432000,-356.82967659,0.00012799,2]
[425349916,1781711432000,-151.0,0.00012575,2]
[425349933,1781711432000,-967.29675216,0.00012799,2]
[425349939,1781711432000,-161.016657,0.00012825,7]
[425349935,1781711432000,-1113.0378205,0.00012799,2]
[425349937,1781711432000,-1392.90732311,0.00012799,2]
[425349940,1781711432000,-122.27934923,0.00013072,2]
[425349929,1781711432000,-279.57728638,0.00012799,2]
[425349922,1781711432000,-355.51452853,0.00012799,2]
[425349925,1781711432000,-262.60568992,0.00012799,2]
[425349913,1781711432000,-1180.42523068,0.00012574,2]
[425349906,1781711432000,-151.0,0.00012567,2]
[425349927,1781711432000,-377.77404129,0.00012799,2]
[425350374,1781711440000,-500.0,0.00013772,2]
[425350364,1781711440000,-871.71238038,0.00013105,2]
[425350365,1781711440000,-1022.29335222,0.00013105,2]
[425350366,1781711440000,-213.788134,0.00013389,7]
[425350367,1781711440000,-392.75,0.00013455,2]
[425350369,1781711440000,-376.43198048,0.00013699,2]
[425350379,1781711440000,-163.55,0.00013779,2]
[425350375,1781711440000,-620.2982534,0.00013772,2]
[425350377,1781711440000,-163.55,0.00013777,2]
[425350378,1781711440000,-163.56,0.00013779,2]
[425350371,1781711440000,-500.0,0.00013772,2]
[425350376,1781711440000,-163.55,0.00013775,2]
[425350368,1781711440000,-183.566209,0.00013564,2]
[425350373,1781711440000,-500.0,0.00013772,2]
[425350372,1781711440000,-500.0,0.00013772,2]